Workbook

Sheet 10.31
A1: 附表2
A2: 江门市本级2022年政府性基金预算调整情况表
N3: 金额单位：万元
A4: 收 入 | H4: 支出
A5: 项目 | B5: 年初预算数 | C5: 第一次调整预算后金额 | D5: 第二次调整预算后金额 | E5: 第三次调整预算后金额 | F5: 第四次调整额 | G5: 调整后预算数 | H5: 项目 | I5: 年初预算数 | J5: 第一次调整预算后金额 | K5: 第二次调整预算后金额 | L5: 第三次调整预算后金额 | M5: 第四次调整额 | N5: 调整后预算数
A6: 一、基金预算收入 | B6: 540,175 | C6: 540,175 | D6: 540,175 | E6: 540,175 | F6: =-287075 -> -287,075 | G6: =E6+F6 -> 253,100 | H6: 一、基金预算支出 | I6: 225,761 | J6: 245,761 | K6: 265,761 | L6: 265,761 | M6: =N6-L6 -> -161,157 | N6: 104,604
A7: 二、上年结余收入 | B7: 68,123 | C7: 68,123 | D7: 68,123 | E7: 68,123 | F7: 8,149 | G7: =E7+F7 -> 76,272 | H7: 二、转移性支出 | I7: =I8+I9 -> 433,583 | J7: =J8+J9 -> 433,583 | K7: 433,583 | L7: 433,583 | M7: -180,023 | N7: =N8+N9 -> 253,560
A8: 三、转移性收入 | B8: =B9+B10 -> 380,460 | C8: =C9+C10 -> 380,460 | D8: 380,460 | E8: 380,460 | F8: =F9+F10 -> -184,745 | G8: 195,715 | H8: （一）上解上级支出 | N8: =L8+M8 -> 0
A9: （一）上级补助收入 | B9: 1,710 | C9: 1,710 | D9: 1,710 | E9: 1,710 | F9: 12,255 | G9: =E9+F9 -> 13,965 | H9: （二）补助下级支出 | I9: 433,583 | J9: 433,583 | K9: 433,583 | L9: 433,583 | M9: -180,023 | N9: =SUM(L9:M9) -> 253,560
A10: （二）下级上解收入 | B10: 378,750 | C10: 378,750 | D10: 378,750 | E10: 378,750 | F10: -197,000 | G10: 181,750 | H10: 三、调出资金 | I10: 283,868 | J10: 283,868 | K10: 283,868 | L10: 283,868 | M10: -96,985 | N10: 186,883
A11: 四、债券转贷收入 | B11: =B12+B13 -> 0 | C11: =C12+C13 -> 800,000 | D11: 1,779,835 | E11: 1,859,835 | F11: 0 | G11: 1,859,835 | H11: 四、结转下年支出
A12: （一）再融资债券收入 | C12: 0 | D12: 99,835 | E12: 99,835 | G12: =E12+F12 -> 99,835 | H12: 五、债券转贷支出 | I12: =I13+I14 -> 0 | J12: =J13+J14 -> 780,000 | K12: 1,737,996 | L12: 1,817,996 | M12: 0 | N12: 1,817,996
A13: （二）专项债券收入 | C13: 800,000 | D13: 1,680,000 | E13: 1,760,000 | G13: 1,760,000 | H13: （一）再融资债券支出 | K13: 97,996 | L13: 97,996 | N13: =L13+M13 -> 97,996
H14: （二）专项债券支出 | J14: 780,000 | K14: 1,640,000 | L14: 1,720,000 | N14: 1,720,000
H15: 六、债务还本支出 | I15: 45,546 | J15: 45,546 | K15: 47,385 | L15: 47,385 | M15: -25,507 | N15: 21,878
A16: 收入总计 | B16: =B6+B7+B8+B11 -> 988,758 | C16: 1,788,758 | D16: 2,768,593 | E16: 2,848,593 | F16: -463,671 | G16: 2,384,922 | H16: 支出总计 | I16: =I6+I7+I10+I12+I15 -> 988,758 | J16: 1,788,758 | K16: 2,768,593 | L16: 2,848,593 | M16: =M6+M7+M10+M11+M12+M15 -> -463,671 | N16: =N6+N7++N10+N11+N12+N15 -> 2,384,922 | Q16: =G16-N16 -> 0
Q17: =F16-M16 -> 0

Sheet Sheet2

Sheet Sheet3
